bitfinex-derivatives/quotes_SOLF0:USTF0_20250527
["timestamp","ask_amount","ask_price","bid_price","bid_amount"]
[1748367439061,0.03612288,178.3,178.28,5.6062]
[1748367440060,0.03612288,178.3,178.27,5.6065]
[1748367440366,0.03612288,178.3,178.23,30.78]
[1748367440762,0.03612288,178.3,178.29,5.606]
[1748367444073,2.288e-05,178.3,178.29,5.606]
[1748367451376,36.2826,178.4,178.37,5.6035]
[1748367452071,5.6029,178.39,178.36,5.6037]
[1748367452462,0.03934076,178.39,178.36,0.03612288]
[1748367452668,0.03934076,178.39,178.37,5.6033]
[1748367453277,5.64224076,178.39,178.37,5.6033]
[1748367454478,5.64224076,178.39,178.36,5.63982288]
[1748367454777,0.03934076,178.39,178.37,5.6032]
[1748367454978,0.03934076,178.39,178.36,0.03612288]
[1748367455577,0.03934076,178.39,178.37,5.6035]
[1748367456387,0.03934076,178.39,178.36,0.03612288]
[1748367456979,5.64224076,178.39,178.36,5.63972288]
[1748367457377,0.03934076,178.39,178.36,0.03612288]
[1748367457778,0.03934076,178.39,178.37,5.6035]
[1748367458081,5.64224076,178.39,178.36,0.03612288]
[1748367458281,5.64224076,178.39,178.36,5.63982288]
[1748367459277,0.03934076,178.39,178.36,0.03612288]
[1748367460286,5.6035,178.37,178.36,0.03612288]
[1748367462685,0.03934076,178.39,178.36,0.03612288]
[1748367463784,0.03934076,178.39,178.37,5.6033]
[1748367464283,0.03934076,178.39,178.36,0.03612288]
[1748367464587,5.64234076,178.39,178.36,0.03612288]
[1748367466392,5.6032,178.38,178.36,0.03612288]
[1748367467088,5.64224076,178.39,178.36,0.03612288]
[1748367467891,16.83,178.52,178.36,9.8843965]
[1748367468196,9.84827362,178.52,178.36,40.52827362]
[1748367468383,9.84827362,178.52,178.37,9.84827362]
[1748367468686,9.84827362,178.52,178.44,5.6012]
[1748367468887,9.84827362,178.52,178.37,9.84827362]
[1748367469083,30.68,178.54,178.46,0.04249548]
[1748367469281,9.88392154,178.52,178.46,0.04249548]
[1748367469482,9.84827362,178.49,178.36,30.68]
[1748367469789,9.84827362,178.49,178.4,5.6024]
[1748367469790,5.6015,178.44,178.4,5.6024]
[1748367470589,5.64228316,178.44,178.4,5.63536816]
[1748367470892,0.04078316,178.44,178.4,0.03296816]
[1748367471291,5.6019,178.43,178.4,0.03296816]
[1748367471594,0.04078316,178.44,178.4,0.03296816]
[1748367471787,5.6019,178.42,178.4,0.03296816]
[1748367474494,36.2817,178.43,178.4,0.03296816]
[1748367475691,5.6019,178.42,178.4,0.03296816]
[1748367475888,30.68,178.43,178.4,0.03296816]
[1748367477291,5.6022,178.41,178.4,0.03296816]
[1748367480993,40.52827362,178.43,178.4,0.03296816]
[1748367481790,5.6022,178.41,178.4,0.03296816]
[1748367494202,5.602,178.42,178.4,0.03296816]
[1748367494502,0.04078316,178.44,178.4,0.03296816]
[1748367496797,5.602,178.42,178.4,0.03296816]
[1748367500902,0.04078316,178.44,178.4,0.03296816]
[1748367501507,5.6022,178.41,178.4,0.03296816]
[1748367505605,36.1622,178.41,178.4,0.03296816]
[1748367509007,40.40827362,178.41,178.3,30.6]
[1748367509203,9.84827362,178.38,178.26,30.56]
[1748367509711,5.6036,178.37,178.26,30.56]
[1748367510009,0.03705495,178.33,178.26,30.56]
[1748367510209,0.03705495,178.33,178.32,5.6048]
[1748367511710,0.03705495,178.33,178.26,30.56]
[1748367512507,0.03705495,178.33,178.31,5.6053]
[1748367514907,0.03705495,178.33,178.26,30.56]
[1748367515309,5.6056,178.31,178.22,143.28]
[1748367515614,0.04031396,178.28,178.22,143.28]
[1748367515911,0.04031396,178.28,178.27,5.6066]
[1748367520221,0.04031396,178.28,178.26,5.6068]
[1748367520415,0.04031396,178.28,178.22,30.56]
[1748367521222,5.6068,178.27,178.18,30.58]
[1748367521426,0.03948335,178.24,178.23,5.6077]
[1748367521618,0.04046801,178.25,178.18,30.58]
[1748367522018,0.04046801,178.25,178.23,5.6077]
[1748367523320,0.04046801,178.25,178.18,30.58]
[1748367524421,0.04046801,178.25,178.22,5.608]
[1748367525222,0.04046801,178.25,178.18,30.58]
[1748367525822,0.04046801,178.25,178.23,5.6078]
[1748367530132,0.04046801,178.25,178.18,30.58]
[1748367530337,0.04046801,178.25,178.15,484.26]
[1748367530826,5.6076,178.24,178.2,5.6086]
[1748367531022,5.6076,178.24,178.15,484.26]
[1748367531228,0.03888809,178.21,178.15,484.26]
[1748367532032,0.03888809,178.21,178.2,5.6088]
[1748367533427,0.03888809,178.21,178.15,484.26]
[1748367533930,5.64738809,178.21,178.18,5.6092]
[1748367534632,5.6089,178.2,178.17,5.6097]
[1748367534832,0.03888809,178.21,178.14,30.58]
[1748367535128,0.03888809,178.21,178.16,5.6101]
[1748367535326,0.03888809,178.21,178.14,30.58]
[1748367535524,30.57888809,178.21,178.14,30.58]
[1748367535727,5.6094,178.19,178.15,5.6102]
[1748367536020,30.57888809,178.21,178.14,30.58]
[1748367536222,5.6101,178.17,178.13,5.6108]
[1748367536531,0.03821598,178.17,178.1,30.54]
[1748367536735,5.6106,178.15,178.11,5.6115]
[1748367536925,0.03747451,178.15,178.06,515.08]
[1748367537528,0.03747451,178.15,178.12,5.6111]
[1748367537732,0.03747451,178.15,178.06,515.08]
[1748367538735,0.03747451,178.15,178.06,627.84]
[1748367539135,0.03747451,178.15,178.13,5.611]
[1748367539531,0.03747451,178.15,178.06,627.84]
[1748367539734,0.03747451,178.15,178.14,5.6107]
[1748367541637,7.451e-05,178.15,178.14,5.6107]
[1748367556152,7.451e-05,178.15,178.13,0.0374]
[1748367556153,7.451e-05,178.15,178.13,5.6484]
[1748367556355,7.451e-05,178.15,178.13,0.0374]
[1748367556958,7.451e-05,178.15,178.14,5.6107]
[1748367560256,7.451e-05,178.15,178.13,0.0374]
[1748367560952,7.451e-05,178.15,178.13,5.6484]
[1748367561159,7.451e-05,178.15,178.13,0.0374]
[1748367561357,7.451e-05,178.15,178.14,5.6107]
[1748367570062,30.5,178.24,178.21,5.6084]
[1748367570970,30.53609649,178.24,178.21,5.64587451]
[1748367571172,36.14389649,178.24,178.21,0.03747451]
[1748367572472,5.6079,178.23,178.21,0.03747451]
[1748367573680,30.53609649,178.24,178.21,0.03747451]
[1748367574571,5.6081,178.23,178.21,0.03747451]
[1748367574771,30.53609649,178.24,178.21,0.03747451]
[1748367575184,36.14389649,178.24,178.21,0.03747451]
[1748367575475,30.53609649,178.24,178.21,0.03747451]
[1748367576675,36.14369649,178.24,178.21,5.64587451]
[1748367577280,30.53609649,178.24,178.21,0.03747451]
[1748367578073,30.53609649,178.24,178.23,5.6079]
[1748367579577,30.53609649,178.24,178.22,5.6081]
[1748367579980,30.53609649,178.24,178.21,0.03747451]
[1748367580180,30.53609649,178.24,178.21,5.64577451]
[1748367580581,30.53609649,178.24,178.21,0.03747451]
[1748367582181,36.14369649,178.24,178.21,5.64577451]
[1748367582583,36.14369649,178.24,178.22,5.6082]
[1748367582784,30.53609649,178.24,178.21,0.03747451]
[1748367583177,30.53609649,178.24,178.23,5.6079]
[1748367588377,0.03609649,178.24,178.23,5.6079]
[1748367591797,9.649e-05,178.24,178.23,5.6079]
[1748367600491,9.649e-05,178.24,178.21,0.03747451]
[1748367600989,9.649e-05,178.24,178.23,5.6079]
[1748367604297,9.649e-05,178.24,178.22,5.6081]
[1748367604490,9.649e-05,178.24,178.21,0.03747451]
[1748367606502,5.6081,178.23,178.21,0.03747451]
[1748367606691,9.649e-05,178.24,178.21,0.03747451]
[1748367607195,5.6082,178.22,178.21,0.03747451]
[1748367607990,5.608,178.23,178.21,0.03747451]
[1748367608293,9.649e-05,178.24,178.21,5.64587451]
[1748367608798,9.649e-05,178.24,178.23,5.6079]
[1748367610996,484.76,178.34,178.3,5.6056]
[1748367611194,515.2,178.34,178.3,5.6056]
[1748367611395,5.6048,178.33,178.3,5.6056]
[1748367611597,515.2,178.34,178.31,5.6053]
[1748367612100,30.48009833,178.34,178.31,0.03569923]
[1748367613601,5.6051,178.32,178.31,0.03569923]
[1748367613902,30.48009833,178.34,178.31,0.03569923]
[1748367616002,30.48009833,178.34,178.31,5.64089923]
[1748367616303,30.48009833,178.34,178.31,0.03569923]
[1748367616498,30.48009833,178.34,178.31,5.64099923]
[1748367616999,30.48009833,178.34,178.31,0.03569923]
[1748367618303,5.6048,178.33,178.31,0.03569923]
[1748367619706,36.08469833,178.34,178.31,5.64109923]
[1748367620310,5.605,178.33,178.31,0.03569923]
[1748367623306,36.08469833,178.34,178.31,0.03569923]
[1748367623511,36.08469833,178.34,178.31,5.64099923]
[1748367624710,0.04009833,178.34,178.33,5.6047]
[1748367625011,0.04009833,178.34,178.31,0.03569923]
[1748367625212,5.64469833,178.34,178.31,5.64089923]
[1748367625811,0.04009833,178.34,178.31,0.03569923]
[1748367626713,0.04009833,178.34,178.33,5.6047]
[1748367627309,0.04009833,178.34,178.32,5.6049]
[1748367627509,0.04009833,178.34,178.31,0.03569923]
[1748367630215,0.04009833,178.34,178.31,5.64099923]
[1748367631026,5.64469833,178.34,178.31,5.64099923]
[1748367631326,5.64469833,178.34,178.32,5.605]
[1748367631717,0.04009833,178.34,178.31,0.03569923]
[1748367632024,0.04009833,178.34,178.31,5.64099923]
[1748367633027,5.64479833,178.34,178.31,5.64099923]
[1748367634530,0.04009833,178.34,178.33,5.6047]
[1748367634718,0.04009833,178.34,178.31,0.03569923]
[1748367635826,5.64479833,178.34,178.31,5.64089923]
[1748367637533,5.6047,178.33,178.31,0.03569923]
[1748367637933,0.04009833,178.34,178.31,0.03569923]
[1748367638535,5.605,178.32,178.31,0.03569923]
[1748367638737,0.04009833,178.34,178.31,0.03569923]
[1748367639737,5.6049,178.33,178.31,0.03569923]
[1748367639925,0.04009833,178.34,178.31,5.64099923]
[1748367640638,5.64469833,178.34,178.31,5.64099923]
[1748367642838,5.64469833,178.34,178.33,5.6047]
[1748367642839,0.04009833,178.34,178.33,5.6047]
[1748367648641,484.58,178.43,178.4,5.6024]
[1748367648936,30.38,178.44,178.34,30.38]
[1748367649132,30.38,178.44,178.42,5.6016]
[1748367649334,30.38,178.44,178.36,9.84827362]
[1748367649537,30.38,178.48,178.36,9.84827362]
[1748367649738,0.0377872,178.44,178.43,5.6013]
[1748367650235,0.0377872,178.44,178.42,5.63849516]
[1748367650441,0.0377872,178.44,178.42,0.03689516]
[1748367650940,0.0377872,178.44,178.42,5.63869516]
[1748367651343,0.0377872,178.44,178.42,0.03689516]
[1748367652140,0.0377872,178.44,178.43,5.6016]
[1748367656643,8.72e-05,178.44,178.43,5.6016]
[1748367668257,31.98,178.65,178.43,15.44827362]
[1748367668456,31.98,178.65,178.52,9.84827362]
[1748367668753,5.5952,178.64,178.56,5.5972]
[1748367668953,31.98,178.65,178.54,31.98]
[1748367669351,31.98,178.65,178.58,0.03720107]
[1748367669352,0.03574311,178.61,178.58,0.03720107]
[1748367669655,0.03574311,178.61,178.6,5.5963]
[1748367676654,0.03574311,178.61,178.59,31.96]
[1748367677561,0.03574311,178.61,178.6,5.5963]
[1748367678156,0.03574311,178.61,178.59,31.96]
[1748367678558,0.03574311,178.61,178.58,0.03720107]
[1748367678752,0.03574311,178.61,178.58,5.63400107]
[1748367679158,0.03574311,178.61,178.58,0.03720107]
[1748367679359,0.03574311,178.61,178.59,5.5965]
[1748367679755,0.03574311,178.61,178.58,0.03720107]
[1748367681864,0.03574311,178.61,178.59,5.5964]
[1748367683957,0.03574311,178.61,178.58,0.03720107]
[1748367685063,5.5966,178.59,178.58,0.03720107]
[1748367688463,37.5566,178.59,178.58,0.03720107]
[1748367691473,31.96,178.59,178.49,31.96]
[1748367692071,5.598,178.55,178.51,5.5989]
[1748367692381,31.96,178.59,178.51,5.5989]
[1748367692576,0.04045261,178.57,178.53,0.03943594]
[1748367692875,5.5983,178.54,178.53,0.03943594]
[1748367693375,0.04045261,178.57,178.53,0.03943594]
[1748367693376,5.5979,178.55,178.53,0.03943594]
[1748367693875,5.5981,178.54,178.53,0.03943594]
[1748367694278,5.598,178.55,178.53,0.03943594]
[1748367694587,0.04045261,178.57,178.53,0.03943594]
[1748367695377,5.5979,178.55,178.53,0.03943594]
[1748367696372,5.5981,178.54,178.53,0.03943594]
[1748367696871,5.598,178.55,178.53,0.03943594]
[1748367698475,5.5977,178.56,178.53,0.03943594]
[1748367700784,5.5977,178.56,178.53,5.63773594]
[1748367701380,5.63775261,178.57,178.53,0.03943594]
[1748367701893,0.04045261,178.57,178.54,5.5979]
[1748367702385,0.04045261,178.57,178.53,0.03943594]
[1748367702587,9.84827362,178.56,178.53,0.03943594]
[1748367702978,5.5981,178.54,178.53,0.03943594]
[1748367703179,38.1581,178.54,178.53,0.03943594]
[1748367706689,5.599,178.52,178.45,31.96]
[1748367707289,32.56,178.54,178.49,5.5997]
[1748367707487,5.5987,178.53,178.49,5.5997]
[1748367707885,5.64127518,178.53,178.49,5.64277567]
[1748367708094,5.5988,178.52,178.49,5.64277567]
[1748367709094,5.5988,178.52,178.49,0.04307567]
[1748367709289,5.5991,178.51,178.49,0.04307567]
[1748367712191,5.5994,178.5,178.49,0.04307567]
[1748367714293,5.6002,178.48,178.44,5.6012]
[1748367715091,9.84827362,178.53,178.44,5.6012]
[1748367715299,0.03882183,178.5,178.47,0.03174384]
[1748367715499,32.58,178.49,178.47,0.03174384]
[1748367715702,5.6003,178.48,178.47,0.03174384]
[1748367716295,38.1798,178.49,178.47,0.03174384]
[1748367716696,32.58,178.49,178.47,0.03174384]
[1748367718302,32.58,178.49,178.47,5.63184384]
[1748367718698,32.58,178.49,178.48,5.6]
[1748367719201,32.58,178.49,178.47,0.03174384]
[1748367719402,0.03882183,178.5,178.48,5.5998]
[1748367721800,0.03882183,178.5,178.47,0.03174384]
[1748367722306,5.63832183,178.5,178.47,0.03174384]
[1748367722693,5.63832183,178.5,178.47,5.63204384]
[1748367722896,5.5998,178.49,178.47,0.03174384]
[1748367723100,0.03882183,178.5,178.47,0.03174384]
[1748367723597,5.5999,178.49,178.47,0.03174384]
[1748367724802,5.63832183,178.5,178.47,0.03174384]
[1748367725508,5.63832183,178.5,178.47,5.63204384]
[1748367725701,5.5998,178.49,178.47,0.03174384]
[1748367725901,0.03882183,178.5,178.47,0.03174384]
[1748367726301,5.6,178.48,178.47,0.03174384]
[1748367726502,38.18,178.48,178.47,0.03174384]
[1748367729006,32.58,178.48,178.47,0.03174384]
[1748367729894,32.58,178.48,178.47,5.63204384]
[1748367732903,5.63842183,178.5,178.47,5.63204384]
[1748367733904,5.5998,178.49,178.47,0.03174384]
[1748367734609,5.63832183,178.5,178.47,5.63204384]
[1748367735000,0.03882183,178.5,178.47,5.63204384]
[1748367735202,0.03882183,178.5,178.49,5.5997]
[1748367735403,0.03882183,178.5,178.47,0.03174384]
[1748367736309,0.03882183,178.5,178.47,5.63184384]
[1748367736704,0.03882183,178.5,178.47,0.03174384]
[1748367737012,0.03882183,178.5,178.49,5.5997]
[1748367743310,0.03882183,178.5,178.49,11.1997]
[1748367743311,2.183e-05,178.5,178.49,11.1997]
[1748367743708,2.183e-05,178.5,178.49,5.5997]
[1748367754822,32.02,178.6,178.59,5.5966]
[1748367755323,41.86827362,178.64,178.59,5.5966]
[1748367755522,41.86827362,178.64,178.53,32.02]
[1748367755523,32.02,178.64,178.53,32.02]
[1748367755732,0.0387887,178.6,178.57,0.03752724]
[1748367755929,0.0387887,178.6,178.59,5.5966]
[1748367757026,0.0387887,178.6,178.57,0.03752724]
[1748367757433,0.0387887,178.6,178.59,5.5966]
[1748367757934,0.0387887,178.6,178.58,5.5968]
[1748367758331,0.0387887,178.6,178.57,0.03752724]
[1748367759132,0.0387887,178.6,178.59,5.5966]
[1748367764839,0.0387887,178.6,178.58,5.5967]
[1748367765134,0.0387887,178.6,178.57,0.03752724]
[1748367765440,0.0387887,178.6,178.59,5.5966]
[1748367768535,0.0387887,178.6,178.58,5.5969]
[1748367769236,0.0387887,178.6,178.59,5.5966]
[1748367784041,0.0387887,178.6,178.57,0.03752724]
[1748367784851,5.6352887,178.6,178.57,0.03752724]
[1748367785351,5.5968,178.59,178.57,0.03752724]
[1748367785748,0.0387887,178.6,178.57,0.03752724]
[1748367785941,5.6351887,178.6,178.57,5.63452724]
[1748367788453,0.0387887,178.6,178.58,5.5967]
[1748367789044,0.0387887,178.6,178.57,0.03752724]
[1748367789349,9.84827362,178.59,178.57,0.03752724]
[1748367789543,30.58,178.58,178.48,30.58]
[1748367789748,5.5979,178.55,178.48,30.58]
[1748367789944,30.58,178.58,178.48,30.58]
[1748367790144,5.5983,178.54,178.5,5.5993]
[1748367790350,9.84827362,178.56,178.48,30.58]
[1748367790549,30.58,178.58,178.5,0.03303844]
[1748367790550,0.04191578,178.54,178.5,0.03303844]
[1748367790751,0.04191578,178.54,178.53,5.5985]
[1748367803663,1.578e-05,178.54,178.53,36.1785]
[1748367814769,1.578e-05,178.54,178.53,5.5985]
[1748367817878,30.58,178.68,178.53,15.44827362]
[1748367818072,31.9,178.77,178.52,30.58]
[1748367818267,5.5919,178.74,178.52,16.82]
[1748367818472,5.5919,178.74,178.59,9.84827362]
[1748367818770,31.9,178.75,178.6,31.9]
[1748367818966,0.03806165,178.69,178.66,0.038737]
[1748367819973,0.03806165,178.69,178.67,5.5941]
[1748367820371,0.03806165,178.69,178.68,5.5938]
[1748367830774,0.03806165,178.69,178.66,0.038737]
[1748367831275,0.03806165,178.69,178.68,5.5938]
[1748367836177,0.03806165,178.69,178.66,0.038737]
[1748367836778,0.03806165,178.69,178.67,5.5939]
[1748367836981,0.03806165,178.69,178.66,0.038737]
[1748367838382,0.03806165,178.69,178.67,5.594]
[1748367838689,0.03806165,178.69,178.66,0.038737]
[1748367839189,0.03806165,178.69,178.67,5.5941]
[1748367839381,0.03806165,178.69,178.66,0.038737]
[1748367840280,0.03806165,178.69,178.68,5.5938]
[1748367853889,11.1722,178.93,178.73,11.1842]
[1748367854096,9.82054838,178.87,178.74,154.82]
[1748367854389,5.589,178.84,178.73,483.32]
[1748367854588,9.82054838,178.87,178.73,483.32]
[1748367854992,0.03772238,178.82,178.8,5.5898]
[1748367855192,0.03772238,178.82,178.79,0.04142916]
[1748367856795,5.62732238,178.82,178.79,0.04142916]
[1748367857391,5.5897,178.81,178.79,0.04142916]
[1748367858797,5.59,178.8,178.79,0.04142916]
[1748367863100,5.5909,178.78,178.64,483.2]
[1748367863403,44.5170833,178.84,178.65,163.7970833]
[1748367863703,5.5909,178.78,178.74,5.5918]
[1748367864297,5.63042369,178.78,178.74,5.62722308]
[1748367865899,5.63042369,178.78,178.75,5.5916]
[1748367866391,5.591,178.77,178.74,5.62722308]
[1748367866593,0.03952369,178.78,178.74,0.03542308]
[1748367867205,5.5913,178.76,178.74,0.03542308]
[1748367867803,5.5911,178.77,178.74,0.03542308]
[1748367869002,5.5911,178.77,178.74,5.62732308]
[1748367869607,5.63032369,178.78,178.74,5.62732308]
[1748367869905,0.03952369,178.78,178.74,5.62732308]
[1748367871108,5.5912,178.77,178.74,5.62732308]
[1748367871314,0.03952369,178.78,178.74,0.03542308]
[1748367871911,0.03952369,178.78,178.77,5.591]
[1748367872410,0.03952369,178.78,178.74,0.03542308]
[1748367872610,0.03952369,178.78,178.76,5.5912]
[1748367873110,0.03952369,178.78,178.74,0.03542308]
[1748367873298,0.03952369,178.78,178.77,5.591]
[1748367874212,2.369e-05,178.78,178.77,11.191]
[1748367874415,2.369e-05,178.78,178.77,5.591]
[1748367876515,2.369e-05,178.78,178.76,5.5913]
[1748367876713,2.369e-05,178.78,178.74,0.03542308]
[1748367876915,2.369e-05,178.78,178.74,5.62732308]
[1748367877115,2.369e-05,178.78,178.74,0.03542308]
[1748367877614,2.369e-05,178.78,178.77,5.591]
[1748367877916,2.369e-05,178.78,178.74,0.03542308]
[1748367878512,2.369e-05,178.78,178.76,5.5913]
[1748367879118,2.369e-05,178.78,178.77,5.591]
[1748367879415,2.369e-05,178.78,178.74,0.03542308]
[1748367879616,2.369e-05,178.78,178.75,5.5913]
[1748367880316,2.369e-05,178.78,178.76,5.5912]
[1748367881110,2.369e-05,178.78,178.77,5.591]
[1748367881615,2.369e-05,178.78,178.76,5.5913]
[1748367882717,2.369e-05,178.78,178.74,0.03542308]
[1748367883409,2.369e-05,178.78,178.75,5.5915]
[1748367884716,2.369e-05,178.78,178.76,5.5913]
[1748367885214,2.369e-05,178.78,178.74,0.03542308]
[1748367886207,2.369e-05,178.78,178.74,5.62732308]
[1748367887822,2.369e-05,178.78,178.74,0.03542308]
[1748367888523,2.369e-05,178.78,178.76,5.5911]
[1748367890723,2.369e-05,178.78,178.75,5.5915]
[1748367891022,2.369e-05,178.78,178.74,0.03542308]
[1748367892232,2.369e-05,178.78,178.76,5.591]
[1748367892529,2.369e-05,178.78,178.74,0.03542308]
[1748367893428,2.369e-05,178.78,178.77,5.591]
[1748367895128,2.369e-05,178.78,178.74,0.03542308]
[1748367895527,2.369e-05,178.78,178.76,5.591]
[1748367897637,2.369e-05,178.78,178.77,5.591]
[1748367924053,11.163,179.08,178.81,16.82]
[1748367924251,9.80773496,179.04,178.82,483.04]
[1748367924454,5.5851,178.96,178.83,170.92]
[1748367924752,41.92,179.1,178.94,9.78983783]
[1748367924963,47.5008,179.1,178.95,9.7853276]
[1748367925256,0.03683933,179.04,179.01,0.03637768]
[1748367925852,0.03683933,179.04,179.03,5.5829]
[1748367926053,0.03683933,179.04,179.01,0.03637768]
[1748367926851,0.03683933,179.04,179.03,5.5829]
[1748367927258,0.03683933,179.04,179.01,0.03637768]
[1748367927451,41.9,179.14,179.01,9.82170528]
[1748367927660,41.9,179.14,179.04,9.7853276]
[1748367928055,41.9,179.14,179.07,5.5814]
[1748367928256,41.9,179.14,178.99,41.9]
[1748367928456,0.04251035,179.08,179.06,5.5819]
[1748367928661,5.58,179.13,179.05,0.03881136]
[1748367928662,0.04048605,179.09,179.05,0.03881136]
[1748367930353,5.5819,179.06,179.05,0.03881136]
[1748367934768,5.58,179.06,178.93,523.38]
[1748367934966,50.2253276,179.07,178.97,5.5847]
[1748367935162,5.5834,179.02,178.97,5.5847]
[1748367935564,0.0353151,179.01,178.98,0.0405809]
[1748367935770,5.6189151,179.01,178.98,0.0405809]
[1748367935966,0.0353151,179.01,178.98,0.0405809]
[1748367936863,0.0353151,179.01,178.98,5.6249809]
[1748367937063,0.0353151,179.01,178.98,0.0405809]
[1748367939162,5.5841,179.0,178.98,0.0405809]
[1748367940461,5.5841,178.99,178.98,0.0405809]
[1748367940860,5.5839,179.0,178.98,0.0405809]
[1748367941274,0.0353151,179.01,178.98,0.0405809]
[1748367941462,5.5838,179.0,178.98,0.0405809]
[1748367941764,0.0353151,179.01,178.98,0.0405809]
[1748367942166,5.5841,178.99,178.98,0.0405809]
[1748367942472,9.7853276,179.0,178.88,40.42]
[1748367942772,5.5853,178.96,178.92,5.5861]
[1748367943273,5.5848,178.97,178.93,5.5859]
[1748367943474,9.7853276,179.0,178.92,0.0389499]
[1748367943475,0.03666775,178.96,178.92,0.0389499]
[1748367945269,0.03666775,178.96,178.95,5.5854]
[1748367946465,0.03666775,178.96,178.94,5.5856]
[1748367947068,0.03666775,178.96,178.95,5.5854]
[1748367947264,0.03666775,178.96,178.92,0.0389499]
[1748367947466,0.03666775,178.96,178.94,5.5855]
[1748367948173,0.03666775,178.96,178.95,5.5854]
[1748367952768,6.775e-05,178.96,178.95,5.5854]
[1748367953669,9.7853276,179.13,178.95,55.8053276]
[1748367953875,41.86,179.15,178.96,130.18]
[1748367954075,41.86,179.14,179.0,9.7853276]
[1748367954374,41.86,179.14,178.96,130.18]
[1748367954575,5.5798,179.13,178.96,130.18]
[1748367954781,0.04188066,179.06,179.05,5.5823]
[1748367955077,0.03745562,179.07,179.04,0.03916398]
[1748367955278,0.03745562,179.07,179.04,0.04163722]
[1748367955779,0.03745562,179.07,179.06,5.5819]
[1748367960381,0.03745562,179.07,179.04,0.04163722]
[1748367961186,0.03745562,179.07,179.04,5.62423722]
[1748367961684,15.40448322,179.07,179.04,0.04163722]
[1748367961982,9.82278322,179.07,179.04,0.04163722]
[1748367962386,9.7853276,179.04,178.9,177.78]
[1748367962683,9.7853276,179.04,179.0,5.5837]
[1748367962875,43.36,179.09,178.91,9.7853276]
[1748367963076,9.7853276,179.09,178.91,9.7853276]
[1748367963286,0.04067123,179.02,178.98,0.03989174]
[1748367964073,0.04067123,179.02,179.01,5.5835]
[1748367966492,44.84,179.15,179.09,5.5808]
[1748367966782,44.84,179.15,178.99,9.7853276]
[1748367966986,9.7853276,179.14,178.99,9.7853276]
[1748367967581,0.04235165,179.08,179.05,0.03763268]
[1748367967781,44.84,179.15,179.1,5.5805]
[1748367968081,0.03958384,179.14,179.11,0.0399626]
[1748367968286,0.03870805,179.14,179.11,0.03586931]
[1748367968986,0.03870805,179.14,179.11,5.61616931]
[1748367969190,0.03870805,179.14,179.11,0.03586931]
[1748367969589,0.03870805,179.14,179.12,5.5801]
[1748367970189,0.03870805,179.14,179.11,0.03586931]
[1748367973305,0.03870805,179.14,179.12,5.5801]
[1748367973595,0.03870805,179.14,179.11,0.03586931]
[1748367974185,0.03870805,179.14,179.11,5.61596931]
[1748367974386,0.03870805,179.14,179.11,0.03586931]
[1748367975497,0.03870805,179.14,179.13,5.5798]
[1748367977796,5.5769,179.23,179.18,5.578]
[1748367978396,5.5769,179.23,179.08,54.6053276]
[1748367978397,5.577,179.22,179.08,44.82]
[1748367978605,9.7853276,179.23,179.08,54.6053276]
[1748367978799,0.04053261,179.17,179.16,5.5788]
[1748367979100,0.04053261,179.17,179.14,0.0396574]
[1748367979101,0.03788326,179.18,179.15,0.03908857]
[1748367979490,0.03788326,179.18,179.17,5.5782]
[1748367982100,0.03788326,179.18,179.15,0.03908857]
[1748367982602,0.03788326,179.18,179.15,5.61818857]
[1748367983098,0.03788326,179.18,179.15,0.03908857]
[1748367983293,0.03788326,179.18,179.15,5.61818857]
[1748367984696,0.03788326,179.18,179.16,5.5788]
[1748367985395,0.03788326,179.18,179.17,5.5785]
[1748367986903,0.03788326,179.18,179.15,0.03908857]
[1748367987296,9.7853276,179.16,179.05,44.8]
[1748367988001,44.8,179.18,179.12,5.58]
[1748367988202,54.5853276,179.18,179.05,44.8]
[1748367988405,0.03858099,179.13,179.1,0.03672414]
[1748367988795,0.03858099,179.13,179.12,5.5801]
[1748367992106,0.03858099,179.13,179.1,0.03672414]
[1748367993111,0.03858099,179.13,179.12,5.5801]
[1748368000112,0.03858099,179.13,179.11,5.5804]
[1748368000414,0.03858099,179.13,179.1,0.03672414]
[1748368000806,0.03858099,179.13,179.11,5.5801]
[1748368001004,0.03858099,179.13,179.1,0.03672414]
[1748368002316,0.03858099,179.13,179.11,5.5801]
[1748368002615,0.03858099,179.13,179.1,0.03672414]
[1748368002813,0.03858099,179.13,179.12,5.5801]
[1748368004818,0.03858099,179.13,179.1,5.61742414]